bitfinex-derivatives/quotes_SOLF0:USTF0_20250830
["timestamp","ask_amount","ask_price","bid_price","bid_amount"]
[1756536435165,4.52355198,206.14,206.02,7.17]
[1756536435365,13.14644478,206.13,206.02,7.17]
[1756536435570,6.11936763,206.12,206.02,7.17]
[1756536435765,2.534129,206.11,206.02,7.17]
[1756536436076,2.534129,206.1,206.02,7.17]
[1756536436270,4.52355198,206.14,206.02,7.17]
[1756536436472,9.63357478,206.13,206.02,7.17]
[1756536436664,6.11887543,206.12,206.03,4.3678]
[1756536436870,2.53403296,206.11,206.03,4.3678]
[1756536437069,2.53403296,206.1,206.04,7.17]
[1756536437374,0.05,206.18,206.04,7.17]
[1756536437574,9.67076688,206.17,206.06,7.17]
[1756536437874,6.1549885,206.16,206.12,7.17]
[1756536438069,2.56879996,206.15,206.12,7.17]
[1756536438269,2.56879996,206.14,206.12,7.17]
[1756536438465,0.05,206.18,206.11,11.5362]
[1756536438671,9.67259761,206.17,206.11,11.5362]
[1756536438871,6.15620214,206.16,206.12,7.17]
[1756536439072,2.5693624,206.15,206.12,7.17]
[1756536439273,2.5693624,206.14,206.12,7.17]
[1756536439480,0.05,206.18,206.11,11.5362]
[1756536439675,13.18847364,206.17,206.11,11.5362]
[1756536439872,6.15720803,206.16,206.12,7.17]
[1756536440072,2.56978259,206.15,206.13,4.3657]
[1756536440281,0.05,206.23,206.14,7.17]
[1756536440575,13.19376085,206.22,206.14,7.17]
[1756536440774,13.19376085,206.21,206.14,7.17]
[1756536440978,9.67808085,206.2,206.14,7.17]
[1756536441169,6.15939305,206.19,206.11,7.17]
[1756536441367,6.15917919,206.18,206.11,7.17]
[1756536441567,2.57094895,206.17,206.11,7.17]
[1756536441771,4.47355198,206.14,205.93,10.76802037]
[1756536441972,4.47355198,205.98,205.92,7.17]
[1756536442676,2.56395462,205.97,205.88,7.17]
[1756536442870,4.47355198,205.98,205.88,7.17]
[1756536443072,2.56394812,205.97,205.88,7.17]
[1756536443374,4.47355198,205.98,205.88,7.17]
[1756536443978,4.47355198,205.98,205.89,4.3708]
[1756536444672,0.05,206.01,205.89,4.3708]
[1756536444879,4.47355198,205.99,205.9,7.17]
[1756536445081,4.24897584,205.98,205.9,7.17]
[1756536445282,4.24897584,205.97,205.9,7.17]
[1756536445482,4.47355198,205.99,205.9,7.17]
[1756536445678,4.24594503,205.98,205.9,7.17]
[1756536445979,4.24594503,205.97,205.9,7.17]
[1756536446180,4.47355198,205.99,205.9,7.17]
[1756536446370,0.05,206.08,205.9,11.64355198]
[1756536446571,17.99822203,206.07,205.91,7.17]
[1756536446775,2.55570735,206.06,205.91,7.17]
[1756536447281,4.47355198,206.07,205.91,7.17]
[1756536447673,4.47355198,206.07,205.97,7.17]
[1756536448076,4.47355198,206.1,205.97,7.17]
[1756536448674,4.47355198,206.1,205.98,4.3689]
[1756536449076,2.55601799,206.09,205.98,4.3689]
[1756536449281,4.47355198,206.1,205.98,4.3689]
[1756536449477,2.5559639,206.09,205.98,4.3689]
[1756536449677,4.47355198,206.1,205.98,4.3689]
[1756536449985,2.5559639,206.09,205.98,4.3689]
[1756536450178,4.47355198,206.1,205.98,4.3689]
[1756536450380,2.55598638,206.09,205.98,4.3689]
[1756536450672,4.47355198,206.1,205.98,4.3689]
[1756536450877,2.55596671,206.09,205.98,4.3689]
[1756536451082,4.47355198,206.1,205.98,4.3689]
[1756536451385,2.55596671,206.09,206.0,4.3685]
[1756536451584,0.05,206.12,206.0,4.3685]
[1756536451879,13.51938991,206.11,206.0,4.3685]
[1756536452079,2.5562326,206.1,206.02,4.3681]
[1756536452274,0.05,206.12,206.02,4.3681]
[1756536452584,2.55707188,206.11,206.02,4.3681]
[1756536452882,0.05,206.12,206.02,4.3681]
[1756536453082,2.55684234,206.11,206.02,4.3681]
[1756536453275,0.05,206.12,206.02,4.3681]
[1756536453474,2.55712472,206.11,206.02,4.3681]
[1756536453681,5.39995323,206.2,206.05,7.17]
[1756536453883,9.95382275,206.19,206.08,4.47355198]
[1756536454083,0.05,206.24,206.09,7.17]
[1756536454286,13.23038282,206.23,206.09,7.17]
[1756536454479,13.23038282,206.23,206.08,4.47355198]
[1756536454480,9.74039824,206.22,206.12,7.17]
[1756536454683,6.169976,206.21,206.12,7.17]
[1756536454887,2.55798402,206.2,206.12,7.17]
[1756536455082,0.05,206.24,206.12,7.17]
[1756536455279,0.05,206.22,206.09,7.17]
[1756536455485,9.74038732,206.21,206.09,7.17]
[1756536455684,2.55797621,206.2,206.09,7.17]
[1756536455887,0.05,206.22,206.09,7.17]
[1756536456183,6.17004785,206.21,206.09,7.17]
[1756536456388,2.55807072,206.2,206.09,7.17]
[1756536456583,4.47355198,206.24,206.08,4.3667]
[1756536456884,5.39995323,206.19,205.96,4.47355198]
[1756536457087,108.42162791,206.26,205.96,4.47355198]
[1756536457088,0.06,206.12,205.97,7.66]
[1756536457489,0.06,206.12,206.0,7.66]
[1756536458188,9.74172615,206.11,206.0,7.66]
[1756536458389,6.17063665,206.1,206.0,7.66]
[1756536458589,4.53355198,206.12,206.0,7.66]
[1756536458790,0.06,206.07,205.93,7.66]
[1756536458990,2.55765599,206.06,205.93,7.66]
[1756536459193,4.47355198,206.04,205.93,7.66]
[1756536459791,0.06,206.07,205.93,7.66]
[1756536459986,10.64373179,206.06,205.93,7.66]
[1756536460291,2.55750813,206.05,205.93,7.66]
[1756536460489,4.47355198,206.06,205.93,7.66]
[1756536460689,2.55745989,206.05,205.93,7.66]
[1756536460991,4.47355198,206.06,205.93,7.66]
[1756536461289,2.55745989,206.05,205.93,7.66]
[1756536461488,4.47355198,206.06,205.93,7.66]
[1756536461690,2.557494,206.05,205.93,7.66]
[1756536461992,2.61730862,206.04,205.93,7.66]
[1756536462188,4.47355198,206.03,205.93,7.66]
[1756536464189,0.06,206.01,205.91,54.84542142]
[1756536464390,4.47355198,206.0,205.89,7.66]
[1756536465493,4.47355198,206.0,205.92,0.0307522]
[1756536466388,0.06,206.01,205.92,7.6907522]
[1756536466589,0.06,206.06,205.92,7.6907522]
[1756536466789,9.74587106,206.05,205.92,7.6907522]
[1756536466995,6.17840224,206.04,205.92,7.66]
[1756536467189,0.06,206.06,205.92,7.66]
[1756536467389,6.10422459,206.05,205.92,7.66]
[1756536467589,2.53665798,206.04,205.92,7.66]
[1756536467790,0.06,206.06,205.95,12.0295]
[1756536468085,6.10422459,206.05,205.95,12.0295]
[1756536468293,2.53665798,206.04,205.95,12.0295]
[1756536468690,0.06,206.06,205.95,12.0295]
[1756536468894,2.5371109,206.05,205.95,12.0295]
[1756536469194,2.5370794,206.04,205.95,12.0295]
[1756536469396,0.06,206.06,205.95,12.0295]
[1756536469590,9.79355198,206.07,205.95,12.0295]
[1756536469591,0.06,206.04,205.95,7.66]
[1756536469795,2.53746304,206.03,205.95,7.66]
[1756536469995,0.06,206.04,205.95,7.66]
[1756536470196,2.537259,206.03,205.95,7.66]
[1756536470396,0.06,206.04,205.95,7.66]
[1756536470698,2.53736012,206.03,205.95,7.66]
[1756536470892,0.06,206.04,205.95,7.66]
[1756536471092,2.53725226,206.03,205.95,7.66]
[1756536471289,0.06,206.04,205.95,7.66]
[1756536471490,2.53747968,206.03,205.95,7.66]
[1756536471792,0.06,206.04,205.95,7.66]
[1756536471997,2.53735676,206.03,205.95,7.66]
[1756536472197,0.06,206.04,205.95,7.66]
[1756536472496,2.537257,206.03,205.95,7.66]
[1756536472696,4.53355198,206.04,205.95,7.66]
[1756536472897,2.53725074,206.03,205.95,7.66]
[1756536473097,2.53725074,206.02,205.95,7.66]
[1756536473299,0.06,206.03,205.9,7.66]
[1756536473500,2.53708404,206.02,205.9,7.66]
[1756536473695,2.53708404,206.01,205.9,7.66]
[1756536473895,0.06,206.03,205.9,7.66]
[1756536474095,0.06,206.0,205.9,7.66]
[1756536474900,4.47355198,206.01,205.9,7.66]
[1756536477001,4.53355198,206.01,205.9,7.66]
[1756536477197,2.53605562,206.0,205.9,7.66]
[1756536477397,4.53355198,206.01,205.9,7.66]
[1756536477594,2.5359636,206.0,205.9,7.66]
[1756536477794,4.47355198,205.97,205.9,7.66]
[1756536478001,4.53355198,205.97,205.85,7.66]
[1756536478899,2.53487749,205.96,205.85,12.0316]
[1756536479106,4.53355198,205.97,205.85,12.0316]
[1756536479308,2.53436752,205.96,205.85,12.0316]
[1756536479499,4.53355198,205.97,205.85,7.66]
[1756536479804,4.53355198,205.94,205.85,7.66]
[1756536480408,0.06,205.94,205.85,7.66]
[1756536480704,4.47355198,205.97,205.85,7.66]
[1756536480904,9.5972793,205.96,205.85,7.66]
[1756536481104,6.09599073,205.95,205.85,7.66]
[1756536481308,2.53322601,205.94,205.85,7.66]
[1756536481506,4.47355198,205.97,205.85,7.66]
[1756536481707,9.59430407,205.96,205.85,7.66]
[1756536481903,6.09409198,205.95,205.85,7.66]
[1756536482108,0.06,206.02,205.87,7.66]
[1756536482300,0.06,206.0,205.87,7.66]
[1756536482505,2.53312664,205.99,205.87,7.66]
[1756536482705,2.53296893,205.98,205.87,7.66]
[1756536482905,4.53355198,206.0,205.87,7.66]
[1756536483106,6.09507374,205.99,205.87,7.66]
[1756536483410,2.53290186,205.98,205.87,7.66]
[1756536483609,4.53355198,206.0,205.87,7.66]
[1756536483809,6.09595666,205.99,205.87,7.66]
[1756536484010,0.06,205.97,205.87,7.66]
[1756536484510,4.53355198,205.97,205.87,7.66]
[1756536484708,2.5325359,205.96,205.87,7.66]
[1756536484905,4.53355198,205.97,205.87,7.66]
[1756536485106,2.53239595,205.96,205.87,7.66]
[1756536485410,2.53239595,205.95,205.87,7.66]
[1756536485711,4.53355198,205.97,205.87,7.66]
[1756536485913,2.5329389,205.96,205.87,7.66]
[1756536486211,2.5329389,205.95,205.87,7.66]
[1756536486413,4.53355198,205.97,205.87,7.66]
[1756536486613,2.53476345,205.96,205.87,7.66]
[1756536486909,4.53355198,205.94,205.84,56.22396496]
[1756536487116,2.53476345,205.93,205.84,56.22396496]
[1756536488513,4.53355198,205.94,205.84,56.22396496]
[1756536488713,2.53348422,205.93,205.84,56.22396496]
[1756536489007,75.78,205.98,205.85,7.66]
[1756536489202,6.09591024,205.97,205.85,7.66]
[1756536489405,2.53316538,205.96,205.85,7.66]
[1756536489603,4.54355198,205.99,205.85,7.66]
[1756536489909,9.59581181,205.98,205.85,7.66]
[1756536490110,6.09522929,205.97,205.85,7.66]
[1756536490310,2.53291982,205.96,205.85,7.66]
[1756536490514,0.07,205.99,205.86,4.3715]
[1756536490811,6.09488053,205.98,205.87,7.66]
[1756536491007,0.07,205.99,205.87,7.66]
[1756536491215,2.53285925,205.98,205.87,7.66]
[1756536491417,0.07,205.99,205.87,7.66]
[1756536491715,2.53163256,205.98,205.87,7.66]
[1756536492013,0.07,205.99,205.87,7.66]
[1756536492216,2.53206252,205.98,205.87,7.66]
[1756536492413,0.07,205.99,205.87,7.66]
[1756536492613,2.53173874,205.98,205.87,7.66]
[1756536492814,0.07,205.99,205.87,7.66]
[1756536493011,2.53173874,205.98,205.87,7.66]
[1756536493215,0.07,205.99,205.87,7.66]
[1756536493416,2.53140309,205.98,205.87,7.66]
[1756536493611,0.07,205.99,205.87,7.66]
[1756536493807,2.53140309,205.98,205.87,7.66]
[1756536494012,0.07,205.99,205.87,7.66]
[1756536494215,2.53131012,205.98,205.87,7.66]
[1756536494415,0.07,205.99,205.87,7.66]
[1756536494613,2.53138535,205.98,205.87,7.66]
[1756536494814,6.16104282,205.97,205.87,7.66]
[1756536495019,2.53134749,205.96,205.87,7.66]
[1756536495219,0.07,205.97,205.87,7.66]
[1756536495416,2.52905097,205.96,205.87,7.66]
[1756536495619,0.07,205.97,205.87,7.66]
[1756536495817,2.52927984,205.96,205.87,7.66]
[1756536496124,2.52930135,205.95,205.87,7.66]
[1756536496413,0.07,205.97,205.87,7.66]
[1756536496615,2.52927004,205.96,205.87,7.66]
[1756536496814,2.52927004,205.95,205.87,7.66]
[1756536497009,0.07,205.97,205.87,7.66]
[1756536497211,2.52956856,205.96,205.87,7.66]
[1756536497411,0.07,205.97,205.87,7.66]
[1756536497412,5.33211681,205.95,205.87,7.66]
[1756536497613,2.80254825,205.95,205.87,7.66]
[1756536500421,2.5351322,205.94,205.87,7.66]
[1756536500721,2.80254825,205.95,205.87,7.66]
[1756536502317,2.53971491,205.94,205.87,7.66]
[1756536502521,86.21995323,206.03,205.87,10.46254825]
[1756536502718,2.80254825,205.99,205.87,2.80254825]
[1756536502918,9.5855292,205.98,205.88,7.66]
[1756536503219,9.5855292,205.97,205.88,7.66]
[1756536503419,6.11052362,205.96,205.88,7.66]
[1756536503618,2.53921451,205.95,205.88,7.66]
[1756536503921,2.53921451,205.94,205.88,7.66]
[1756536504120,2.84254825,205.99,205.88,7.66]
[1756536504322,9.59410823,205.98,205.88,7.66]
[1756536504519,9.59410823,205.97,205.88,7.66]
[1756536504719,9.59410823,205.96,205.88,7.66]
[1756536504922,2.84254825,205.99,205.88,7.66]
[1756536504923,2.54145356,205.95,205.88,7.66]
[1756536505118,2.54145356,205.94,205.88,7.66]
[1756536505420,2.84254825,205.99,205.88,7.66]
[1756536505622,9.59401708,205.98,205.88,7.66]
[1756536505816,9.59401708,205.97,205.88,7.66]
[1756536506016,9.59401708,205.96,205.88,7.66]
[1756536506224,6.11579203,205.95,205.88,7.66]
[1756536506420,2.54159332,205.94,205.88,7.66]
[1756536506625,2.84254825,205.99,205.88,7.66]
[1756536506926,9.59719068,205.98,205.88,7.66]
[1756536507124,9.59719068,205.97,205.88,7.66]
[1756536507424,9.59719068,205.96,205.88,7.66]
[1756536507625,2.542422,205.95,205.88,7.66]
[1756536507822,2.542422,205.94,205.88,7.66]
[1756536508022,2.84254825,205.99,205.88,7.66]
[1756536508217,9.60163212,205.98,205.88,7.66]
[1756536508423,9.60163212,205.97,205.88,7.66]
[1756536508623,9.60163212,205.96,205.88,7.66]
[1756536508818,6.12067678,205.95,205.88,7.66]
[1756536509023,2.54362104,205.94,205.88,7.66]
[1756536509224,2.80254825,205.98,205.88,7.66]
[1756536509527,9.6036132,205.97,205.88,7.66]
[1756536509722,6.12194133,205.96,205.88,7.66]
[1756536509926,6.12194133,205.95,205.88,7.66]
[1756536510128,2.54414462,205.94,205.88,7.66]
[1756536510329,2.80254825,205.98,205.88,7.66]
[1756536510530,9.6040059,205.97,205.88,7.66]
[1756536510730,9.6040059,205.96,205.88,7.66]
[1756536510923,2.54424841,205.95,205.88,7.66]
[1756536511129,6.12212869,205.94,205.88,7.66]
[1756536511428,2.54424841,205.93,205.85,7.66]
[1756536511625,0.04,205.95,205.85,7.66]
[1756536511822,2.54415736,205.94,205.85,7.66]
[1756536512028,0.04,205.95,205.85,7.66]
[1756536512029,2.54415736,205.93,205.85,7.66]
[1756536512225,0.04,205.95,205.85,7.66]
[1756536512427,2.54472601,205.94,205.85,7.66]
[1756536512624,2.54472601,205.93,205.85,7.66]
[1756536512829,0.04,205.95,205.85,7.66]
[1756536513028,2.54463284,205.94,205.85,7.66]
[1756536513229,2.54463284,205.93,205.85,7.66]
[1756536513533,0.04,205.95,205.85,7.66]
[1756536513731,2.54519733,205.94,205.85,7.66]
[1756536514033,2.54519733,205.93,205.85,7.66]
[1756536514334,2.5457884,205.92,205.85,7.66]
[1756536514535,0.04,205.95,205.85,7.66]
[1756536514735,6.1261568,205.94,205.85,7.66]
[1756536514935,2.54588108,205.93,205.85,7.66]
[1756536515138,2.54588108,205.92,205.85,7.66]
[1756536515339,0.04,205.95,205.85,7.66]
[1756536515635,9.61314081,205.94,205.85,7.66]
[1756536515831,2.54664377,205.93,205.85,7.66]
[1756536516029,2.54664377,205.92,205.85,7.66]
[1756536516336,2.84254825,205.98,205.85,7.66]
[1756536516634,13.12900798,205.97,205.85,7.66]
[1756536516836,13.12900798,205.96,205.85,7.66]
[1756536517138,0.07,205.94,205.85,7.66]
[1756536517333,15.93947947,205.93,205.85,7.66]
[1756536517639,0.07,205.89,205.85,7.66]
[1756536517836,2.54905697,205.88,205.85,7.66]
[1756536518638,2.54905697,205.87,205.85,7.66]
[1756536518838,0.07,205.89,205.85,7.66]
[1756536519039,2.55071358,205.88,205.85,7.66]
[1756536519242,0.07,205.89,205.85,7.66]
[1756536519540,2.55115985,205.88,205.85,7.66]
[1756536519739,5.39995323,205.97,205.8,7.24]
[1756536519939,2.80254825,205.91,205.8,7.24]
[1756536520241,9.62367996,205.9,205.8,7.24]
[1756536520435,6.1332818,205.89,205.8,7.24]
[1756536520640,2.54944265,205.88,205.8,7.24]
[1756536520845,2.80254825,205.91,205.8,7.24]
[1756536521044,9.61584138,205.9,205.8,7.24]
[1756536521340,6.13284845,205.89,205.8,7.24]
[1756536521540,2.54947335,205.88,205.8,7.24]
[1756536521842,2.54947335,205.87,205.8,7.24]
[1756536522142,2.54947335,205.86,205.8,7.24]
[1756536522341,2.54947335,205.85,205.77,7.24]
[1756536522540,2.87254825,205.88,205.77,7.24]
[1756536522842,6.13025896,205.87,205.77,7.24]
[1756536523034,2.54834327,205.86,205.77,7.24]
[1756536523238,2.87254825,205.88,205.77,7.24]
[1756536523239,0.07,205.88,205.77,7.24]
[1756536523445,2.54814837,205.87,205.77,7.24]
[1756536523640,2.54814837,205.86,205.77,7.24]
[1756536523840,0.07,205.88,205.77,7.24]
[1756536524040,2.54824172,205.87,205.77,7.24]
[1756536524242,0.07,205.88,205.77,7.24]
[1756536524243,2.54824172,205.86,205.77,7.24]
[1756536524545,0.07,205.88,205.77,7.24]
[1756536524846,2.54818706,205.87,205.77,7.24]
[1756536525042,2.54818706,205.86,205.77,7.24]
[1756536525244,0.07,205.88,205.77,7.24]
[1756536525545,2.5459405,205.87,205.77,7.24]
[1756536525842,2.5459405,205.86,205.77,7.24]
[1756536526043,0.07,205.88,205.77,7.24]
[1756536526246,2.54593943,205.87,205.77,7.24]
[1756536526442,0.07,205.88,205.77,7.24]
[1756536526641,2.54478249,205.87,205.77,7.24]
[1756536526842,0.07,205.88,205.77,7.24]
[1756536527043,2.54450378,205.87,205.77,7.24]
[1756536527345,0.07,205.88,205.77,7.24]
[1756536527644,2.54430266,205.87,205.77,7.24]
[1756536527839,2.54430266,205.86,205.77,7.24]
[1756536528045,0.07,205.88,205.77,7.24]
[1756536528241,2.54413321,205.87,205.77,7.24]
[1756536528546,2.54413321,205.86,205.77,7.24]
[1756536528748,0.07,205.88,205.77,7.24]
[1756536529048,2.54373443,205.87,205.77,7.24]
[1756536529251,2.54373443,205.86,205.77,7.24]
[1756536529548,0.07,205.88,205.77,7.24]
[1756536529747,2.54338316,205.87,205.77,7.24]
[1756536529948,2.54338316,205.86,205.77,7.24]
[1756536530149,0.07,205.88,205.77,7.24]
[1756536530447,2.54347652,205.87,205.77,2.80254825]
[1756536530647,0.07,205.88,205.78,7.24]
[1756536530849,2.54315143,205.87,205.78,7.24]
[1756536531151,0.07,205.88,205.78,7.24]
[1756536531448,2.54313684,205.87,205.78,7.24]
[1756536531644,0.07,205.88,205.78,7.24]
[1756536531839,2.54271391,205.87,205.78,7.24]
[1756536532046,0.07,205.88,205.78,7.24]
[1756536532247,2.54272849,205.87,205.78,7.24]
[1756536532448,0.07,205.88,205.78,7.24]
[1756536532752,2.54251852,205.87,205.79,7.24]
[1756536532948,0.07,205.88,205.79,7.24]
[1756536533149,2.54250394,205.87,205.79,7.24]
[1756536533449,0.07,205.88,205.79,7.24]
[1756536533651,2.54230233,205.87,205.79,7.24]
[1756536533851,0.07,205.88,205.79,7.24]
[1756536534052,2.54230233,205.87,205.79,7.24]
[1756536534353,0.07,205.88,205.79,7.24]
[1756536534652,2.54208269,205.87,205.79,7.24]
[1756536534850,0.07,205.88,205.79,7.24]
[1756536535051,2.54296478,205.87,205.79,7.24]
[1756536535253,0.07,205.88,205.79,7.24]
[1756536535451,2.54302052,205.87,205.79,7.24]
[1756536535653,0.07,205.88,205.79,7.24]
[1756536535849,2.54305129,205.87,205.79,7.24]
[1756536536050,2.80254825,205.92,205.81,7.24]
[1756536536351,13.09627245,205.91,205.81,7.24]
[1756536536546,2.87254825,205.92,205.81,7.24]
[1756536536547,9.58895716,205.9,205.81,7.24]
[1756536536748,2.54324419,205.89,205.81,7.24]
[1756536537053,2.54324419,205.88,205.81,7.24]
[1756536537351,2.80254825,205.91,205.81,7.24]
[1756536537552,6.11598178,205.9,205.81,7.24]
[1756536537743,2.80254825,205.91,205.81,7.24]
[1756536537744,2.54384467,205.89,205.81,7.24]
[1756536537944,2.54384467,205.88,205.81,7.24]
[1756536538251,2.80254825,205.91,205.81,7.24]
[1756536538447,6.11669478,205.9,205.81,7.24]
[1756536538651,2.54407359,205.89,205.81,7.24]
[1756536538848,2.54407359,205.88,205.81,7.24]
[1756536539046,2.80254825,205.91,205.81,7.24]
[1756536539250,6.11681469,205.9,205.81,7.24]
[1756536539450,2.54418688,205.89,205.81,7.24]
[1756536539749,2.54418688,205.88,205.81,7.24]
[1756536539945,2.80254825,205.91,205.81,7.24]
[1756536540151,9.66235161,205.9,205.81,7.24]
[1756536540355,6.11682994,205.89,205.81,7.24]
[1756536540555,2.54418826,205.88,205.81,7.24]
[1756536540756,0.07,205.9,205.83,0.03519151]
[1756536540952,6.11662939,205.89,205.83,0.03519151]
[1756536541151,2.54410281,205.89,205.83,0.03519151]
[1756536541348,2.5439881,205.88,205.84,7.24]
[1756536541553,0.07,205.9,205.84,7.24]
[1756536541755,2.54418094,205.89,205.83,0.03519151]
[1756536541954,0.07,205.9,205.83,7.27519151]
[1756536542150,2.54427214,205.89,205.83,7.27519151]
[1756536542455,0.07,205.9,205.83,7.27519151]
[1756536542757,2.54427527,205.89,205.83,7.27519151]
[1756536542947,0.07,205.93,205.83,7.27519151]
[1756536543146,13.10720586,205.92,205.83,7.27519151]
[1756536543354,6.11740585,205.91,205.83,7.24]
[1756536543554,2.54437539,205.9,205.83,7.24]
[1756536543755,2.54437539,205.89,205.83,7.24]
[1756536543946,0.07,205.93,205.83,7.24]
[1756536544145,13.10915911,205.92,205.83,7.24]
[1756536544345,6.11832953,205.91,205.83,7.24]
[1756536544545,2.54475017,205.9,205.83,7.24]
[1756536544854,0.07,205.97,205.84,7.24]
[1756536545056,13.11012203,205.96,205.84,7.24]
[1756536545260,13.11012203,205.95,205.84,7.24]
[1756536545462,13.11012203,205.94,205.84,7.24]
[1756536545652,9.59529101,205.93,205.84,7.24]
[1756536545960,6.12053803,205.92,205.84,7.24]
[1756536546250,2.54501757,205.91,205.85,2.80254825]
[1756536546454,0.07,205.97,205.86,7.24]
[1756536546659,2.87254825,205.95,205.86,7.24]
[1756536546855,13.1220013,205.94,205.86,7.24]
[1756536547157,9.60398427,205.93,205.86,7.24]
[1756536547357,6.12446024,205.92,205.86,7.24]
[1756536547557,2.54731928,205.91,205.85,2.80254825]
[1756536547759,2.87254825,205.95,205.86,7.75]
[1756536548055,13.12259257,205.94,205.86,7.75]
[1756536548359,9.60442206,205.93,205.86,7.75]
[1756536548559,6.12473909,205.92,205.86,7.75]
[1756536548759,2.54743563,205.91,205.85,2.80254825]
[1756536548951,2.87254825,205.95,205.86,7.75]
[1756536549155,13.12264711,205.94,205.86,7.75]
[1756536549357,9.60450532,205.93,205.86,7.75]
[1756536549558,2.54741484,205.92,205.86,7.75]
[1756536549856,2.54741484,205.91,205.86,7.75]
[1756536550156,2.87254825,205.95,205.86,7.75]
[1756536550458,13.12720075,205.94,205.86,7.75]
[1756536550661,9.60780603,205.93,205.86,7.75]
[1756536550854,6.12692949,205.92,205.86,7.75]
[1756536551051,2.54834809,205.91,205.85,2.80254825]
[1756536551256,2.87254825,205.95,205.86,7.75]
[1756536551557,13.17314989,205.94,205.86,7.75]
[1756536551758,9.6522637,205.93,205.86,7.75]
[1756536551958,6.12974532,205.92,205.86,7.75]
[1756536552158,2.54942805,205.91,205.86,7.75]
[1756536552354,2.87254825,205.95,205.86,7.75]
[1756536552561,13.17536473,205.94,205.86,7.75]
[1756536552763,9.65378403,205.93,205.86,7.75]
[1756536552964,6.13075935,205.92,205.86,7.75]
[1756536553164,2.54993094,205.91,205.85,2.80254825]
[1756536553365,2.54993094,205.9,205.85,2.80254825]
[1756536553662,2.87254825,205.95,205.86,7.75]
[1756536553859,2.80254825,205.92,205.82,7.75]
[1756536554065,0.07,205.88,205.82,7.75]
[1756536554260,2.55044781,205.87,205.8,7.75]
[1756536554461,8.09992984,205.98,205.8,7.75]
[1756536554462,0.07,205.91,205.8,7.75]
[1756536554667,9.65627938,205.9,205.8,7.75]
[1756536554874,2.55047658,205.89,205.8,10.55254825]
[1756536555166,2.55047658,205.88,205.81,7.75]
[1756536555362,2.55068725,205.87,205.81,7.75]
[1756536555557,0.07,205.92,205.81,7.75]
[1756536555760,0.07,205.89,205.81,7.75]
[1756536555963,9.6569887,205.88,205.81,7.75]
[1756536556166,2.55064226,205.87,205.81,7.75]
[1756536556468,2.55064226,205.86,205.81,7.75]
[1756536556669,0.07,205.89,205.81,7.75]
[1756536556966,9.65788515,205.88,205.81,7.75]
[1756536557268,2.55087383,205.87,205.81,7.75]
[1756536557468,2.55087383,205.87,205.79,2.80254825]
[1756536557469,2.55087383,205.86,205.8,7.75]
[1756536557662,0.07,205.89,205.8,7.75]
[1756536557862,9.65953969,205.88,205.8,7.75]
[1756536558060,2.55130429,205.87,205.8,7.75]
[1756536558265,2.55130429,205.86,205.8,7.75]
[1756536558472,0.07,205.89,205.8,7.75]
[1756536558771,9.66078159,205.88,205.8,7.75]
[1756536558970,2.55162611,205.87,205.8,7.75]
[1756536559173,2.55162611,205.86,205.8,7.75]
[1756536559365,0.07,205.89,205.8,7.75]
[1756536559570,9.65808603,205.88,205.8,7.75]